lending/lending_fUSD_20260325
["ID","MTS","AMOUNT","RATE_DAILY","PERIOD"]
[408897393,1774408243206,-151.0,0.00015651,2]
[408897394,1774408243215,-200.0,0.00015651,2]
[408897395,1774408243224,-181.08010149,0.00015651,2]
[408897396,1774408243233,-719.04747942,0.00015651,2]
[408897397,1774408243242,-281.06627957,0.00015651,2]
[408897398,1774408243251,-290.26104003,0.00015651,2]
[408897399,1774408243260,-771.01748645,0.00015651,2]
[408897400,1774408243269,-500.0,0.00015653,2]
[408897401,1774408243278,-151.0,0.00015653,2]
[408897402,1774408243287,-2000.0,0.000157,2]
[408897403,1774408243296,-1200.0,0.00015726,2]
[408897404,1774408243306,-2500.0,0.000158,2]
[408897405,1774408243315,-2187.50213983,0.000158,2]
[408897407,1774408243324,-500.0,0.00015808,2]
[408897408,1774408243333,-900.0,0.00015812,2]
[408897409,1774408243342,-2187.50213978,0.00015814,2]
[408897410,1774408243351,-2187.50213978,0.00015829,2]
[408897411,1774408243360,-197.77198,0.0001584,2]
[408897412,1774408243369,-197.77199,0.0001584,2]
[408897413,1774408243378,-197.77199,0.0001584,2]
[408897414,1774408243387,-1209.68440441,0.00015843,2]
[408897415,1774408243399,-300.0,0.00015843,2]
[408897416,1774408243432,-482.12058835,0.00015843,2]
[408897418,1774408245687,-195.69714702,0.00015843,2]
[408897419,1774408245698,-688.2389787,0.00015844,5]
[408897420,1774408245710,-130.7610213,0.00015844,5]
[408897421,1774408245720,-1671.83332786,0.00015857,2]
[408897422,1774408245948,-515.66881192,0.00015857,2]
[408897423,1774408245958,-2000.0,0.00015869,2]
[408897424,1774408245968,-500.0,0.00015871,2]
[408897425,1774408245977,-200.0,0.00015871,2]
[408897426,1774408245986,-415.0,0.00015874,2]
[408897427,1774408245995,-4261.36638708,0.00015878,2]
[408897431,1774408342125,3298.0,0.000111,5]
[408897432,1774408385610,205.0,9.989e-05,2]
[408897433,1774408386596,205.0,9.989e-05,2]
[408897434,1774408386655,205.0,9.989e-05,2]
[408897435,1774408386793,205.0,9.989e-05,2]
[408897436,1774408437632,882.01,0.00011955,2]
[408897437,1774408437654,13.77,0.00011955,2]
[408897462,1774409012845,169.51,0.00012,2]
[408897463,1774409029194,180.0,0.00012,3]
[408897466,1774409136522,-471.82518842,0.00013815,2]
[408897472,1774409254419,-1484.75269563,0.00013815,2]
[408897475,1774409339837,4636.73,9.5e-05,3]
[408897476,1774409339857,5000.01,9.5e-05,3]
[408897477,1774409340152,5000.01,9.5e-05,3]
[408897478,1774409340176,5000.01,9.5e-05,3]
[408897479,1774409340198,5000.01,9.5e-05,3]
[408897480,1774409340219,5000.01,9.5e-05,3]
[408897481,1774409340246,15656.41341505,9.5e-05,3]
[408897501,1774409431926,-600.0,0.00013815,2]
[408897507,1774409431984,-841.11921595,0.00013815,2]
[408897508,1774409431993,-153.66457719,0.000139,2]
[408897509,1774409432002,-825.0431598,0.00013989,2]
[408897510,1774409432013,-374.9568402,0.00013989,2]
[408897511,1774409432022,-150.0,0.00013989,2]
[408897512,1774409432031,-132666.77348556,0.0001399,2]
[408897513,1774409432040,-508.0,0.00014,2]
[408897514,1774409432049,-386.2308,0.00014039,2]
[408897515,1774409432059,-700.0,0.00014082,2]
[408897516,1774409432068,-1000.0,0.00014356,2]
[408897517,1774409432077,-1500.0,0.00014688,2]
[408897518,1774409432087,-150.0,0.00014707,2]
[408897520,1774409432096,-158.79,0.00014884,2]
[408897522,1774409432105,-2638.39237963,0.0001489,2]
[408897523,1774409432114,-1227.49,0.000149,2]
[408897525,1774409432123,-208.32,0.000149,2]
[408897527,1774409432132,-4145.47,0.00014908,2]
[408897528,1774409432141,-287.38,0.00014908,2]
[408897529,1774409432151,-154.26142665,0.00014945,2]
[408897531,1774409432160,-500.0,0.0001499,2]
[408897533,1774409432169,-500.0,0.0001499,2]
[408897535,1774409432179,-500.0,0.0001499,2]
[408897536,1774409432188,-500.0,0.0001499,2]
[408897537,1774409432198,-500.0,0.0001499,2]
[408897538,1774409432206,-500.0,0.0001499,2]
[408897540,1774409432215,-500.0,0.0001499,2]
[408897542,1774409432224,-500.0,0.0001499,2]
[408897544,1774409432233,-500.0,0.0001499,2]
[408897546,1774409432242,-500.0,0.0001499,2]
[408897548,1774409432251,-2064.46610994,0.00015,2]
[408897550,1774409432260,-8037.03514038,0.00015,2]
[408897552,1774409432269,-2638.39237956,0.00015002,2]
[408897554,1774409432278,-418.0,0.0001505,2]
[408897556,1774409432287,-383.15,0.0001505,2]
[408897558,1774409432296,-979.16666667,0.00015087,2]
[408897560,1774409432306,-160.0,0.00015087,2]
[408897562,1774409432315,-540.63437119,0.00015103,2]
[408897564,1774409432324,-255.0,0.00015108,2]
[408897566,1774409432334,-2638.39237956,0.00015114,2]
[408897568,1774409432343,-578.20924308,0.00015134,2]
[408897569,1774409432351,-151.0,0.00015134,2]
[408897571,1774409432361,-721.12765535,0.00015134,2]
[408897572,1774409432370,-500.0,0.00015134,2]
[408897573,1774409432379,-500.0,0.00015134,2]
[408897574,1774409432388,-500.0,0.00015134,2]
[408897575,1774409432398,-500.0,0.00015134,2]
[408897576,1774409432407,-500.0,0.00015134,2]
[408897577,1774409432416,-500.0,0.00015134,2]
[408897578,1774409432425,-512.61241474,0.00015134,2]
[408897579,1774409432435,-500.0,0.00015134,2]
[408897580,1774409432444,-151.0,0.00015134,2]
[408897581,1774409432453,-500.0,0.00015134,2]
[408897582,1774409432463,-500.0,0.00015134,2]
[408897583,1774409432472,-500.0,0.00015134,2]
[408897584,1774409432482,-500.0,0.00015134,2]
[408897585,1774409432497,-500.0,0.00015134,2]
[408897586,1774409432511,-500.0,0.00015134,2]
[408897587,1774409432520,-174.61919141,0.00015134,2]
[408897588,1774409432531,-500.0,0.00015134,2]
[408897589,1774409432540,-500.0,0.00015134,2]
[408897590,1774409432549,-200.0,0.00015134,2]
[408897591,1774409432559,-250.0,0.00015134,2]
[408897592,1774409432568,-250.0,0.00015134,2]
[408897593,1774409432578,-250.0,0.00015134,2]
[408897594,1774409432587,-693.3919763,0.00015134,2]
[408897595,1774409432596,-250.0,0.00015134,2]
[408897596,1774409432606,-250.0,0.00015134,2]
[408897597,1774409432615,-250.0,0.00015134,2]
[408897598,1774409432624,-250.0,0.00015134,2]
[408897599,1774409432633,-250.0,0.00015134,2]
[408897600,1774409432644,-250.0,0.00015134,2]
[408897601,1774409432653,-250.0,0.00015134,2]
[408897602,1774409432662,-250.0,0.00015134,2]
[408897603,1774409432672,-375.77609355,0.00015134,2]
[408897604,1774409432681,-842.54109405,0.00015134,2]
[408897605,1774409432690,-500.0,0.00015134,2]
[408897606,1774409432699,-500.0,0.00015134,2]
[408897607,1774409432708,-500.0,0.00015134,2]
[408897608,1774409432718,-500.0,0.00015134,2]
[408897609,1774409432727,-555.51013956,0.00015134,2]
[408897610,1774409432737,-500.0,0.00015135,2]
[408897611,1774409432746,-794.06,0.00015135,2]
[408897612,1774409432755,-414.38,0.00015181,2]
[408897613,1774409432766,-414.38,0.00015183,2]
[408897614,1774409432775,-500.0,0.00015189,2]
[408897615,1774409432784,-151.0,0.00015189,2]
[408897616,1774409432794,-300.0,0.00015197,2]
[408897617,1774409432803,-2638.39237956,0.00015227,2]
[408897618,1774409432813,-500.0,0.00015244,2]
[408897619,1774409432823,-151.0,0.00015244,2]
[408897620,1774409432833,-5888.0,0.00015283,2]
[408897621,1774409432842,-383.15,0.00015296,2]
[408897622,1774409432852,-500.0,0.00015299,2]
[408897623,1774409432862,-151.0,0.00015299,2]
[408897624,1774409432871,-2638.39237956,0.00015339,2]
[408897625,1774409432881,-500.0,0.00015354,2]
[408897626,1774409432891,-151.0,0.00015354,2]
[408897627,1774409432900,-1680.0,0.00015388,2]
[408897628,1774409432910,-150.0,0.00015408,2]
[408897629,1774409432919,-794.06,0.00015408,2]
[408897630,1774409432928,-500.0,0.00015409,2]
[408897631,1774409432938,-151.0,0.00015409,2]
[408897632,1774409432947,-2638.39237956,0.00015451,2]
[408897633,1774409432958,-700.0,0.00015452,2]
[408897634,1774409432967,-500.0,0.00015464,2]
[408897635,1774409432976,-151.0,0.00015464,2]
[408897636,1774409432986,-2463.0,0.00015497,2]
[408897637,1774409432995,-2403.0,0.000155,2]
[408897638,1774409433004,-350.0,0.000155,2]
[408897639,1774409433013,-500.0,0.00015519,2]
[408897640,1774409433023,-151.0,0.00015519,2]
[408897641,1774409433032,-418.01,0.00015537,2]
[408897642,1774409433041,-383.15,0.00015537,2]
[408897643,1774409433050,-2638.39237956,0.00015563,2]
[408897644,1774409433059,-500.0,0.00015574,2]
[408897645,1774409433068,-151.0,0.00015574,2]
[408897646,1774409433078,-1342.18,0.00015595,2]
[408897647,1774409433087,-2463.0,0.00015602,2]
[408897648,1774409433097,-500.0,0.00015629,2]
[408897649,1774409433107,-151.0,0.00015629,2]
[408897650,1774409433116,-1586.93378641,0.00015634,2]
[408897651,1774409433126,-3666.637,0.00015653,2]
[408897652,1774409433135,-152.782,0.00015661,2]
[408897653,1774409433144,-326292.54103805,0.00015662,2]
[408897654,1774409433158,-44937.00496522,0.00015662,2]
[408897655,1774409433169,-80268.03214842,0.00015662,2]
[408897656,1774409438259,-3404.56,0.0001389,2]
[408897660,1774409438288,-1390.78787657,0.0001389,2]
[408897662,1774409438299,-1218.16553465,0.0001389,2]
[408897664,1774409438309,-473.77473843,0.0001389,2]
[408897686,1774409440312,-300.0,0.0001389,2]
[408897687,1774409440629,-2109.78527406,0.0001389,2]
[408897724,1774409517292,1180.0,0.00011,5]
[408897725,1774409581915,975.1,0.00017,60]
[408897727,1774410083854,-250.0,0.00013,2]
[408897728,1774410083880,-151.0,0.00013777,2]
[408897729,1774410083905,-156.78,0.00013777,2]
[408897730,1774410083930,-151.0,0.00013783,2]
[408897731,1774410083964,-151.0,0.00013783,2]
[408897732,1774410083992,-300.0,0.00013799,2]
[408897733,1774410084018,-175.22,0.000138,2]
[408897734,1774410359096,-1087.32101952,0.00013309,2]
[408897738,1774410632048,-311.0,0.00013022,2]
[408897739,1774410632057,-200.0,0.00013022,2]
[408897740,1774410632066,-1229.78,0.00013222,2]
[408897741,1774410632075,-2842.76,0.00013286,2]
[408897742,1774410632087,-789.46920826,0.00013286,2]
[408897743,1774410632106,-767.51079174,0.00013286,2]
[408897744,1774410632115,-765.09898048,0.00013309,2]
[408897745,1774410632124,-230.84,0.00013315,2]
[408897746,1774410632133,-1200.0,0.00013424,2]
[408897747,1774410632143,-3240.0,0.00013425,2]
[408897748,1774410632152,-166.66,0.00013546,2]
[408897749,1774410632161,-174.7418,0.00013782,2]
[408897750,1774410632170,-27428.6203,0.00013789,2]
[408897751,1774410632179,-4846.29894648,0.000138,2]
[408897752,1774410632190,-1648.63524168,0.000138,2]
[408897753,1774410632199,-166.66,0.00013832,2]
[408897754,1774410632209,-150.0,0.00013872,2]
[408897755,1774410632219,-500.0,0.00013873,2]
[408897756,1774410632229,-500.0,0.00013873,2]
[408897757,1774410632240,-501.34783032,0.00013873,2]
[408897758,1774410632249,-504.53950133,0.00013873,2]
[408897759,1774410632258,-500.0,0.00013873,2]
[408897761,1774410632268,-500.30562592,0.00013873,2]
[408897763,1774410632278,-500.0,0.00013873,2]
[408897764,1774410632287,-500.0,0.00013873,2]
[408897766,1774410632296,-500.0,0.00013873,2]
[408897768,1774410632306,-501.56078272,0.00013873,2]
[408897769,1774410632314,-500.0,0.00013873,2]
[408897770,1774410632324,-500.0,0.00013873,2]
[408897771,1774410632334,-500.0,0.00013873,2]
[408897772,1774410632345,-500.0,0.00013873,2]
[408897773,1774410632354,-500.0,0.00013873,2]
[408897774,1774410632364,-1877.10530605,0.0001388,2]
[408897775,1774410632374,-151.0,0.00013882,2]
[408897776,1774410632383,-500.0,0.00013882,2]
[408897777,1774410632394,-151.0,0.00013882,2]
[408897778,1774410632404,-500.0,0.00013882,2]
[408897779,1774410632413,-151.0,0.00013882,2]
[408897780,1774410632422,-500.0,0.00013882,2]
[408897781,1774410632432,-200.0,0.00013882,2]
[408897782,1774410632442,-151.0,0.00013882,2]
[408897783,1774410632451,-500.0,0.00013882,2]
[408897784,1774410632461,-151.0,0.00013882,2]
[408897785,1774410632471,-500.0,0.00013882,2]
[408897786,1774410632482,-151.0,0.00013882,2]
[408897787,1774410632493,-500.0,0.00013882,2]
[408897788,1774410632503,-151.0,0.00013882,2]
[408897789,1774410632512,-500.0,0.00013882,2]
[408897790,1774410632520,-500.0,0.00013882,2]
[408897791,1774410632529,-151.0,0.00013882,2]
[408897792,1774410632538,-43.13633492,0.00013882,2]
[408897793,1774410632593,-456.86366508,0.00013882,2]
[408897794,1774410632602,-44.68833277,0.00013882,2]
[408897795,1774410632614,-106.31166723,0.00013882,2]
[408897796,1774410632623,-233.44093891,0.00013882,2]
[408897797,1774410632634,-266.55906109,0.00013882,2]
[408897798,1774410632643,-500.0,0.00013882,2]
[408897799,1774410632652,-100.73559226,0.00013882,2]
[408897800,1774410632663,-310.55827694,0.00013882,2]
[408897801,1774410632673,-88.7061308,0.00013882,2]
[408897802,1774410632683,-151.0,0.00013882,2]
[408897803,1774410632692,-94.3187192,0.00013882,2]
[408897804,1774410632703,-56.6812808,0.00013882,2]
[408897805,1774410632713,-151.0,0.00013882,2]
[408897806,1774410632724,-151.0,0.00013882,2]
[408897807,1774410632735,-151.0,0.00013882,2]
[408897808,1774410632745,-1.7287192,0.00013882,2]
[408897809,1774410632813,-149.2712808,0.00013882,2]
[408897810,1774410632825,-500.0,0.00013882,2]
[408897811,1774410632835,-151.0,0.00013882,2]
[408897812,1774410632844,-500.0,0.00013882,2]
[408897813,1774410632853,-151.0,0.00013882,2]
[408897814,1774410632862,-151.0,0.00013882,2]
[408897815,1774410632870,-151.0,0.00013882,2]
[408897816,1774410632879,-151.0,0.00013882,2]
[408897817,1774410632888,-151.0,0.00013882,2]
[408897818,1774410632898,-151.0,0.00013882,2]
[408897819,1774410632907,-151.0,0.00013882,2]
[408897820,1774410632916,-255.20877906,0.00013882,2]
[408897821,1774410632926,-572.92,0.00013882,2]
[408897822,1774410632934,-152.782,0.00013882,2]
[408897823,1774410632944,-2933.309,0.00013882,2]
[408897824,1774410632953,-500.0,0.00013889,2]
[408897825,1774410632962,-5561.30776752,0.00013889,2]
[408897826,1774410632973,-1850.0,0.00013889,2]
[408897830,1774410638377,-2588.68223248,0.00013889,2]
[408897831,1774410638387,-500.0,0.00013889,2]
[408897832,1774410638395,-500.0,0.00013889,2]
[408897833,1774410638404,-500.0,0.00013889,2]
[408897834,1774410638413,-500.0,0.00013889,2]
[408897835,1774410638421,-500.0,0.00013889,2]
[408897836,1774410638433,-791.51771394,0.000139,2]
[408897837,1774410638442,-150.0,0.00014,2]
[408897838,1774410638451,-509.0,0.00014,2]
[408897839,1774410638460,-4193.46005358,0.00014033,2]
[408897840,1774410638471,-652.8388929,0.00014033,2]
[408897841,1774410638480,-37.18322256,0.00014055,2]
[408897843,1774410640409,-151.0,0.00013757,2]
[408897844,1774410640419,-434.96832482,0.00013889,2]
[408897845,1774410640672,-75.62811512,0.00013889,2]
[408897846,1774410640682,-193.65677744,0.00014055,2]
[408897847,1774410640691,-1648.63524166,0.000141,2]
[408897848,1774410640700,-166.66,0.00014117,2]
[408897849,1774410640710,-791.51771386,0.00014122,2]
[408897850,1774410640719,-50.87763637,0.00014156,2]
[408897905,1774411322876,1112.55,0.00011507,2]
[408897913,1774411832167,-250.0,0.00013,2]
[408897914,1774411832176,-234.13,0.00013076,2]
[408897915,1774411832187,-150.0,0.00013102,2]
[408897916,1774411832196,-787.4259,0.000132,2]
[408897917,1774411832205,-95.57678707,0.00013286,2]
[408897918,1774411832217,-1904.42321293,0.00013286,2]
[408897919,1774411832228,-250.0,0.00013552,2]
[408897920,1774411832237,-151.0,0.0001367,2]
[408897921,1774411832247,-151.0,0.00013672,2]
[408897922,1774411832256,-151.0,0.00013672,2]
[408897923,1774411832265,-151.0,0.0001368,2]
[408897924,1774411832275,-151.0,0.0001368,2]
[408897925,1774411832284,-200.0,0.00013699,2]
[408897926,1774411832294,-1200.0,0.00013731,2]
[408897927,1774411832303,-300.0,0.00013731,2]
[408897928,1774411832313,-3877.03915722,0.00013732,2]
[408897929,1774411832322,-500.0,0.00013781,2]
[408897930,1774411832332,-2346.648,0.00013781,2]
[408897931,1774411832342,-152.782,0.00013781,2]
[408897932,1774411832351,-150.0,0.00013781,2]
[408897933,1774411832361,-1189.64,0.00013782,2]
[408897934,1774411832371,-5747.15048,0.00013784,2]
[408897935,1774411832381,-500.0,0.00013788,2]
[408897936,1774411832390,-500.0,0.00013788,2]
[408897937,1774411832399,-500.0,0.00013788,2]
[408897938,1774411832408,-500.0,0.00013788,2]
[408897939,1774411832417,-317.48694253,0.00013788,2]
[408897940,1774411832426,-500.0,0.00013788,2]
[408897941,1774411832436,-500.0,0.00013788,2]
[408897942,1774411832445,-500.0,0.00013788,2]
[408897943,1774411832455,-500.0,0.00013788,2]
[408897944,1774411832465,-500.0,0.00013788,2]
[408897945,1774411832474,-500.0,0.00013788,2]
[408897946,1774411832483,-500.0,0.00013788,2]
[408897947,1774411832493,-500.0,0.00013788,2]
[408897948,1774411832502,-500.0,0.00013788,2]
[408897949,1774411832512,-500.0,0.00013788,2]
[408897950,1774411832521,-500.0,0.00013788,2]
[408897951,1774411832530,-500.0,0.00013788,2]
[408897952,1774411832539,-500.0,0.00013788,2]
[408897953,1774411832548,-500.0,0.00013788,2]
[408897954,1774411832557,-282.18381084,0.00013788,2]
[408897955,1774411832566,-500.0,0.00013788,2]
[408897956,1774411832574,-150.56696842,0.00013788,2]
[408897957,1774411832584,-500.0,0.00013788,2]
[408897958,1774411832593,-500.0,0.00013788,2]
[408897959,1774411832602,-500.0,0.00013788,2]
[408897960,1774411832611,-500.0,0.00013788,2]
[408897961,1774411832621,-500.0,0.00013788,2]
[408897962,1774411832631,-500.0,0.00013788,2]
[408897963,1774411832641,-500.0,0.00013788,2]
[408897964,1774411832650,-500.0,0.00013788,2]
[408897965,1774411832660,-500.0,0.00013788,2]
[408897966,1774411832669,-500.0,0.00013788,2]
[408897967,1774411832678,-500.0,0.00013788,2]
[408897968,1774411832688,-500.0,0.00013788,2]
[408897969,1774411832697,-500.0,0.00013788,2]
[408897970,1774411832706,-500.0,0.00013788,2]
[408897971,1774411832715,-500.0,0.00013788,2]
[408897972,1774411832724,-500.0,0.00013788,2]
[408897973,1774411832734,-500.0,0.00013788,2]
[408897974,1774411832744,-500.0,0.00013788,2]
[408897975,1774411832753,-500.0,0.00013788,2]
[408897976,1774411832763,-500.0,0.00013788,2]
[408897977,1774411832772,-500.0,0.00013788,2]
[408897978,1774411832782,-500.0,0.00013788,2]
[408897979,1774411832791,-500.0,0.00013788,2]
[408897980,1774411832800,-500.0,0.00013788,2]
[408897981,1774411832809,-500.0,0.00013788,2]
[408897982,1774411832818,-500.0,0.00013788,2]
[408897983,1774411832827,-500.0,0.00013788,2]
[408897984,1774411833120,-500.0,0.00013788,2]
[408897985,1774411833130,-500.0,0.00013788,2]
[408897986,1774411833140,-380.2786213,0.00013788,2]
[408897987,1774411833153,-500.0,0.00013788,2]
[408897988,1774411833164,-500.0,0.00013788,2]
[408897989,1774411833173,-500.0,0.00013788,2]
[408897990,1774411833183,-500.0,0.00013788,2]
[408897991,1774411833193,-500.0,0.00013788,2]
[408897992,1774411833203,-500.0,0.00013788,2]
[408897993,1774411833212,-500.0,0.00013788,2]
[408897994,1774411833222,-500.0,0.00013788,2]
[408897995,1774411833233,-500.0,0.00013788,2]
[408897996,1774411833243,-500.0,0.00013788,2]
[408897997,1774411833253,-500.0,0.00013788,2]
[408897998,1774411833262,-500.0,0.00013788,2]
[408897999,1774411833271,-250.0,0.00013788,2]
[408898000,1774411833280,-36807.92604109,0.00013789,2]
[408898002,1774411838227,-593.457277,0.00013789,2]
[408898003,1774411838285,-1869.43054279,0.00013789,2]
[408898004,1774411838442,-7484.55,0.00013789,2]
[408898049,1774411840954,-48246.02872005,0.00013789,2]
[408898074,1774411843335,-279999.15407707,0.00013789,2]
[408898076,1774411846274,-637.55999999,0.00013789,2]
[408898077,1774411846382,-738.39176979,0.00013789,2]
[408898078,1774411846394,-2030.92724803,0.00013789,2]
[408898079,1774411846436,-21379.58302757,0.00013789,2]
[408898099,1774412603741,166.66,0.00012421,2]
[408898100,1774412747089,-166.66,0.00012683,2]
[408898101,1774412747109,-166.66,0.00012944,2]
[408898102,1774412747130,-200.06062966,0.00013135,2]
[408898103,1774412760458,168.38,0.00010483,2]
[408898104,1774412832225,-1399.93937034,0.00013135,2]
[408898105,1774412832245,-84.81332529,0.00013138,2]
[408898120,1774412973871,-8887.46,0.00012885,2]
[408898121,1774412979837,-4961.89,0.00012885,2]
[408898122,1774412979868,-76.23,0.00012885,2]
[408898123,1774412982820,-200.0,0.00012885,2]
[408898124,1774412982859,-184.67,0.00013014,2]
[408898125,1774412982898,-1166.74667471,0.00013138,2]
[408898132,1774413031329,-166.66,0.00013206,2]
[408898134,1774413031339,-500.0,0.0001326,2]
[408898135,1774413031348,-166.66,0.00013467,2]
[408898136,1774413031358,-300.0,0.00013588,2]
[408898137,1774413031368,-1200.0,0.00013588,2]
[408898138,1774413031377,-150.0,0.00013588,2]
[408898139,1774413031386,-7110.68623481,0.00013589,2]
[408898140,1774413031398,-533.12361376,0.00013589,2]
[408898141,1774413031409,-1514.16905929,0.00013589,2]
[408898142,1774413031420,-264.71175977,0.00013589,2]
[408898143,1774413031431,-870.01826012,0.00013589,2]
[408898144,1774413031442,-816.11829527,0.00013589,2]
[408898145,1774413031458,-15802.01308889,0.00013589,2]
[408898146,1774413031468,-784.80151804,0.00013589,2]
[408898147,1774413031506,-875.2214,0.00013589,2]
[408898168,1774413037504,-11421.12936926,0.00013589,2]
[408898169,1774413037617,-410.175902,0.00013589,2]
[408898172,1774413039676,-213990.56669879,0.00013589,2]
[408898173,1774413039686,-151.0,0.00013624,2]
[408898174,1774413039695,-151.0,0.00013625,2]
[408898175,1774413039706,-500.0,0.00013688,2]
[408898176,1774413039715,-500.0,0.00013688,2]
[408898177,1774413039724,-500.0,0.00013688,2]
[408898178,1774413039734,-363.02786213,0.00013688,2]
[408898179,1774413039743,-633.21417116,0.00013689,2]
[408898180,1774413039753,-92834.5227,0.00013689,2]
[408898181,1774413039763,-164.85,0.00013699,2]
[408898182,1774413039772,-166.66,0.00013729,2]
[408898183,1774413039782,-184.67,0.00013737,2]
[408898184,1774413039791,-5529.8279652,0.00013786,2]
[408898185,1774413039800,-3735.515993,0.00013786,2]
[408898186,1774413039811,-151.0,0.00013786,2]
[408898187,1774413039820,-151.0,0.00013786,2]
[408898188,1774413039835,-151.0,0.00013786,2]
[408898189,1774413039844,-500.0,0.00013787,2]
[408898190,1774413039853,-510.26922287,0.00013788,2]
[408898191,1774413039862,-500.0,0.00013788,2]
[408898192,1774413039871,-500.0,0.00013788,2]
[408898193,1774413039881,-534.34010684,0.00013788,2]
[408898194,1774413039890,-509.43886537,0.00013788,2]
[408898195,1774413039899,-8260.5924371,0.00013788,2]
[408898196,1774413040112,-8311.27591407,0.00013788,2]
[408898198,1774413042785,-175430.34195133,0.00013788,2]
[408898199,1774413042795,-151.0,0.00013788,2]
[408898200,1774413042804,-3533.0838376,0.00013789,2]
[408898201,1774413042813,-9855.75350093,0.00013789,2]
[408898218,1774413327117,151.0,0.00012301,2]
[408898219,1774413327171,151.0,0.00012408,2]
[408898221,1774413561273,-250.0,0.00013,2]
[408898222,1774413561595,-2500.0,0.00013489,2]
[408898223,1774413561622,-1260.01,0.00013576,2]
[408898224,1774413561729,-1979.99,0.00013576,2]
[408898225,1774413561757,-300.0,0.00013579,2]
[408898226,1774413561784,-633.21417116,0.0001358,2]
[408898227,1774413561832,-4998.61484852,0.0001358,2]
[408898228,1774413561974,-1200.0,0.00013588,2]
[408898229,1774413562003,-1956.5779,0.00013589,2]
[408898230,1774413562033,-1446.9855,0.00013589,2]
[408898231,1774413562062,-151.0,0.00013611,2]
[408898232,1774413562204,-500.0,0.00013673,2]
[408898233,1774413562232,-500.0,0.00013673,2]
[408898234,1774413562258,-150.0,0.00013679,2]
[408898235,1774413562284,-150.0,0.00013679,2]
[408898236,1774413562361,-144.05144852,0.0001368,2]
[408898237,1774413562424,-2.78030296,0.0001368,2]
[408898238,1774413562491,-1200.0,0.0001368,2]
[408898239,1774413562510,-1956.5779,0.0001368,2]
[408898240,1774413562580,-1446.9855,0.0001368,2]
[408898241,1774413562664,-151.0,0.0001368,2]
[408898242,1774413562757,-490.8832,0.0001368,2]
[408898243,1774413562796,-500.0,0.0001368,2]
[408898244,1774413562810,-500.0,0.0001368,2]
[408898245,1774413562827,-150.0,0.0001368,2]
[408898246,1774413562896,-150.0,0.0001368,2]
[408898247,1774413562913,-4141.43502242,0.0001368,2]
[408898248,1774413562921,-3258.57497758,0.0001368,2]
[408898249,1774413564164,-299.78090772,0.0001368,2]
[408898250,1774413564197,-9400.44818456,0.0001368,2]
[408898251,1774413564258,-10000.01,0.0001368,2]
[408898252,1774413567184,-10000.01,0.0001368,2]
[408898253,1774413567300,-10000.01,0.0001368,2]
[408898254,1774413567426,-10000.01,0.0001368,2]
[408898256,1774413746960,200.0,0.0001,3]
[408898257,1774413931114,-1031.92942488,0.00013106,2]
[408898258,1774413939029,-468.07057512,0.00013106,2]
[408898259,1774413939067,-9063.86884976,0.00013106,2]
[408898260,1774413947757,-1029.86115024,0.00013106,2]
[408898261,1774414011026,1222.31,0.00011507,2]
[408898262,1774414231551,-307.0,0.00012825,2]
[408898263,1774414231561,-100.0,0.00012825,2]